Cogmind - Beta 15 @@@ ROGUE MODE // 2025.10.09 @ 23:55:20 Player: YouButSmellier Result: Destroyed by Autobeam Turret with Autobeam Performance ------------- Evolutions (0) 0 Regions Visited (2) 400 Robots Destroyed (22) 110 Value Destroyed (532) 532 Prototype IDs (0) 0 Alien Tech Used (0) 0 Bonus (-107) -107 TOTAL SCORE: 935 Bonus ------- Friendly Fire -107 Cogmind --------- Core Integrity 0/250 Matter 300/300 Energy 198/200 System Corruption 0% Temperature Cool (7) Movement Walking (260) Ox2 Location -10/Subcaves Parts ------- > --- POWER (1) -------- Subdweller Power Source > --- PROPULSION (2) --- Aluminum Leg > --- UTILITY (2) ------ Large Storage Unit > --- WEAPON (2) ------- Hammer > --- INVENTORY (15) --- Transport Network Coupler Transport Network Coupler Utility Shielding Light Assault Rifle Light Cannon Datajack Hammer Peak State ------------ > --- POWER ------------ Light Nuclear Core > --- PROPULSION ------- Aluminum Leg Aluminum Leg > --- UTILITY ---------- Improved Heat Sink Large Storage Unit > --- WEAPON ----------- Hammer > --- INVENTORY -------- Subdweller Power Source Aluminum Leg Aluminum Leg Aluminum Leg Transport Network Coupler Transport Network Coupler Utility Shielding Light Assault Rifle Light Cannon Datajack Hammer [Rating: 11] Favorites ----------- Power Light Nuclear Core Engine Light Ion Engine Power Core Light Nuclear Core Propulsion Aluminum Leg Leg Aluminum Leg Utility Light Armor Plating Device Improved Heat Sink Storage Small Storage Unit Hackware Hacking Suite Protection Light Armor Plating Weapon Light Assault Rifle Energy Gun Small Laser Ballistic Gun Light Assault Rifle Ballistic Cannon Light Cannon Impact Weapon Hammer Special Melee Weapon Datajack Build | -11 -10 -10 ------- Run | Yrd Mat Sub Slots Evolved . | . . . Power . | . . . Propulsion . | . . . Utility . | . . . Weapon . | . . . Parts Attached 29 | 6 15 8 Power 5 | 1 2 2 Engine 3 | 1 1 1 Core 2 | . 1 1 Reactor . | . . . Propulsion 9 | 2 3 4 Treads . | . . . Leg 9 | 2 3 4 Wheel . | . . . Hover . | . . . Flight . | . . . Utility 7 | 1 5 1 Device 1 | . . 1 Storage 3 | 1 2 . Processor . | . . . Hackware 1 | . 1 . Protection 2 | . 2 . Artifact . | . . . Weapon 8 | 2 5 1 Energy Gun 2 | 2 . . Energy Cannon . | . . . Ballistic Gun 2 | . 2 . Ballistic Cannon 1 | . 1 . Launcher . | . . . Special Weapon . | . . . Impact Weapon 2 | . 1 1 Slashing Weapon . | . . . Piercing Weapon . | . . . Special Melee Weapon 1 | . 1 . Unidentified Prototypes . | . . . Parts Lost 9 | . 1 8 Power 1 | . . 1 Propulsion 4 | . . 4 Utility 3 | . 1 2 Weapon 1 | . . 1 Highest Loss Streak 7 | . 1 7 To Critical Strikes . | . . . Average Backups 7 | 1 7 10 Power . | . 1 . Propulsion . | . . 2 Utility 3 | . 3 3 Weapon 2 | . 2 3 Tool/Special . | . . . Unused Backups 5 | . 2 3 Power 1 | . 1 . Propulsion . | . . . Utility 4 | . 1 3 Weapon . | . . . Tool/Special . | . . . Average Slot Usage (%) 98 | . 99 89 Engine 4 | . 5 1 Core 8 | . 8 10 Leg 27 | . 28 26 Storage 13 | . 13 14 Hackware 1 | . 1 . Protection 12 | . 12 9 Energy Gun 2 | . 3 . Ballistic Gun 19 | . 19 17 Impact Weapon 4 | . 4 6 Peak Build Rating 11 | 6 10 11 Average Rating 9 | 4 9 8 On Entrance 5 | . 6 10 Naked Turns . | . . . Heaviest Build 31 | 11 31 31 Greatest Support 20 | 20 20 20 Greatest Overweight (x) 3 | 3 1 2 Average Overweight (x) . | . . 1 Largest Inventory Capacity 15 | 8 15 15 Average Capacity 10 | 7 10 15 Most Carried 12 | 3 10 12 Average Carried 7 | 1 7 10 Final Capacity 15 | 8 15 15 Final Carried 10 | 2 10 7 Class Distribution -------------------- 56% | Scavenger-Mutant 43% | Mutant Dominant Class ---------------- Scavenger-Mutant | -10/Materials Scavenger-Mutant | -10/Subcaves Resources | -11 -10 -10 ----------- Run | Yrd Mat Sub Matter Collected 684 | 156 446 82 Remotely . | . . . Salvage Created 702 | . 583 119 Parts 43 | . 37 6 Haulers Intercepted 2 | . 2 . Recyclers Shooed . | . . . Parts Field Recycled . | . . . Retrieved Matter . | . . . Parts Self-Destructed 8 | . . 8 Prevented . | . . . Kills | -11 -10 -10 ------- Run | Yrd Mat Sub Combat Hostiles Destroyed 15 | . 12 3 Guns 12 | . 11 1 Cannons 1 | . 1 . Classes Destroyed 8 | . 6 2 Builder 1 | . 1 . Hauler 2 | . 2 . Operator 2 | . 2 . Watcher 1 | . 1 . Swarmer 4 | . 3 1 Grunt 9 | . 9 . Subdweller 2 | . . 2 Federalist 1 | . . 1 Best Kill Streak 2 | . 2 1 Combat Bots Only 2 | . 2 1 Max Kills in Single Turn 1 | . 1 1 Gunslinging . | . . . Exploded . | . . . Melee . | . . . Uniques/NPCs Destroyed . | . . . Combat | -11 -10 -10 -------- Run | Yrd Mat Sub Hostile Shots Fired 127 | . 59 68 Missed 41 | . 19 22 Hits 86 | . 40 46 Projectile 86 | . 40 46 Critical Strikes 2 | . 2 . Damage Taken 1396 | . 488 908 Core 257 | . 88 169 Absorbed by Shields . | . . . Redirected to Shielding 6 | . 6 . Regen/Repaired (Parts) 114 | . 114 . Core Remaining (%) 100 | 100 . . Volleys Fired 79 | . 68 11 Largest 2 | . 2 2 Hottest 80 | . 80 40 Shots Fired 156 | . 134 22 Gun 153 | . 131 22 Cannon 3 | . 3 . Launcher . | . . . Special . | . . . Kinetic 137 | . 115 22 Thermal 14 | . 14 . Explosive . | . . . Electromagnetic 5 | . 5 . Robot Hit Streak 11 | . 11 6 Robot Miss Streak 5 | . 5 1 Penetration Max . | . . . Secondary Targets . | . . . Shots Hit Robots 120 | . 85 35 Core Hits 45 | . 40 5 Critical Kills 1 | . 1 . Critical Parts Destroyed 2 | . . 2 Critical Strikes 3 | . 1 2 Destroy 1 | . 1 . Smash 2 | . . 2 Melee Attacks 45 | . 24 21 Impact 44 | . 23 21 Slashing . | . . . Piercing . | . . . Sneak Attacks 3 | . 3 . Combat Hostiles . | . . . Follow-up Attacks . | . . . Damage Inflicted 1298 | . 799 499 Guns 811 | . 672 139 Cannons 34 | . 34 . Explosions . | . . . Melee 439 | . 79 360 Ramming 14 | . 14 . Kinetic 741 | . 602 139 Thermal 80 | . 80 . Explosive . | . . . Electromagnetic 24 | . 24 . Impact 439 | . 79 360 Slashing . | . . . Piercing . | . . . Highest Corruption . | . . . Average Corruption . | . . . Corruption Purged . | . . . Corruption Blocked . | . . . Overload Shots . | . . . Overflow Damage 98 | . 42 56 Projectiles . | . . . Explosions . | . . . Melee 98 | . 42 56 Knockbacks . | . . . Impact . | . . . Kinetic . | . . . Secondary . | . . . Self-Inflicted Damage . | . . . Shots . | . . . Rammed . | . . . Targets Rammed 7 | . 7 . Kicked 7 | . 7 . Crushed . | . . . Highest Temperature 83 | . 83 . Average Temperature 22 | . 22 . Received Heat Transfer 519 | . 285 234 Siege Activations . | . . . Martial Activations . | . . . Shielding Activations . | . . . Robots Disrupted . | . . . Combat Hostiles . | . . . Robots Corrupted 3 | . 1 2 Combat Hostiles 2 | . . 2 Parts Fried 4 | . 4 . Impact Corruptions 5 | . 2 3 Robots Melted . | . . . Combat Hostiles . | . . . Parts Melted . | . . . Heat Transferred 175 | . 175 . Parts Sabotaged . | . . . Parts Stolen . | . . . Parts Stripped . | . . . Power Chain Reactions . | . . . Alert | -11 -10 -10 ------- Run | Yrd Mat Sub Maximum Alert Level . | . . . Low Security (%) 100 | 100 100 . Level 1 . | . . . Level 2 . | . . . Level 3 . | . . . Level 4 . | . . . Level 5 . | . . . High Security . | . . . Max Security . | . . . Peak Influence 101 | . 101 . Initial . | . . . Average 25 | . 26 . Influence Increases 478 | . 448 30 Destroy 0b10 Robot/C 260 | . 240 20 Destroy 0b10 Robot/NC 30 | . 30 . Destroy Leader 86 | . 76 10 Disable Machine 15 | . 15 . Destroy Structure 12 | . 12 . Partial Spotted 15 | . 15 . Lose Combat Pursuer 60 | . 60 . Influence Decreases 478 | . 448 30 Time Decay 468 | . 438 30 Lost Part 10 | . 10 . Squads Dispatched 3 | . 3 . Investigation 1 | . 1 . Extermination . | . . . Reinforcement 2 | . 2 . Assault . | . . . Garrison . | . . . Intercept . | . . . Searches Triggered . | . . . Construction Impeded . | . . . Haulers Reinforced . | . . . Active Scanning Responses . | . . . Cargo Convoy Interrupts . | . . . Stealth | -11 -10 -10 --------- Run | Yrd Mat Sub Distress Signals 2 | . 2 . Communications Jammed . | . . . Distress Signals . | . . . Times Spotted 43 | . 30 13 Peak Tracking Total 6 | . 3 6 Tactical Retreats 3 | . 3 . Traps | -11 -10 -10 ------- Run | Yrd Mat Sub Traps Triggered 2 | . 2 . Indirectly . | . . . Trap Hack Attempts . | . . . Triggered . | . . . Disarmed . | . . . Reprogrammed . | . . . Reused . | . . . Traps Extracted . | . . . Installed . | . . . Triggered . | . . . Machines | -11 -10 -10 ---------- Run | Yrd Mat Sub Machines Disabled 2 | . 2 . Max in Single Turn 1 | . 1 . Machines Repaired . | . . . Machines Dismantled . | . . . Machines Sabotaged . | . . . Overloaded Fab Kills . | . . . Hacking | -11 -10 -10 --------- Run | Yrd Mat Sub Machines Accessed 6 | . 6 . Terminals 5 | . 5 . Fabricators . | . . . Repair Stations 1 | . 1 . Recycling Units . | . . . Scanalyzers . | . . . Garrison Access . | . . . Total Hacks 16 | . 16 . Successful 7 | . 7 . Failed 9 | . 9 . Catastrophic 5 | . 5 . Database Lockouts . | . . . Manual 10 | . 10 . Terminals 12 | . 12 . Fabricators . | . . . Repair Stations 4 | . 4 . Recycling Units . | . . . Scanalyzers . | . . . Garrison Access . | . . . Terminal Hacks 3 | . 3 . Robot Analysis 1 | . 1 . Terminal Index 1 | . 1 . Dispatch Records 1 | . 1 . Fabricator Hacks . | . . . Repair Station Hacks 4 | . 4 . Scan Component 2 | . 2 . Repair 2 | . 2 . Recycling Unit Hacks . | . . . Scanalyzer . | . . . Garrison Access Hacks . | . . . Unauthorized Hacks . | . . . Terminals . | . . . Fabricators . | . . . Repair Stations . | . . . Recycling Units . | . . . Scanalyzers . | . . . Garrison Access . | . . . Data Cores Recovered . | . . . Used . | . . . Hacking Detections 6 | . 6 . Full Trace Events . | . . . Feedback Events . | . . . Feedback Blocked . | . . . Robot Schematics Acquired . | . . . Robots Built . | . . . Authchips . | . . . Time . | . . . Total Robot Build Rating . | . . . Part Schematics Acquired . | . . . Parts Built . | . . . Authchips . | . . . Time . | . . . Total Part Build Rating . | . . . Parts Repaired 2 | . 2 . Time 52 | . 52 . Parts Recycled . | . . . Recycled Matter . | . . . Retrieved Matter . | . . . Retrieved Components . | . . . Parts Scanalyzed . | . . . Part Schematics Acquired . | . . . Parts Damaged . | . . . Bothacking | -11 -10 -10 ------------ Run | Yrd Mat Sub Used RIF Installer . | . . . Robots Hacked 1 | . 1 . Non-combat 1 | . 1 . Combat . | . . . Robot Hacks Applied 1 | . 1 . no_distress 1 | . 1 . Relay Couplers Released . | . . . Fabnet Peak Effective % . | . . . Robots Rewired . | . . . Allies Hacked . | . . . Hacks Repelled . | . . . Allies | -11 -10 -10 -------- Run | Yrd Mat Sub Total Allies . | . . . Largest Group . | . . . Highest-Rated Group . | . . . Highest-Rated Ally . | . . . Total Orders . | . . . Ally Attacks . | . . . Total Damage . | . . . Kills . | . . . Allies Corrupted . | . . . Allies Melted . | . . . Intel | -11 -10 -10 ------- Run | Yrd Mat Sub Active Infowar (turns) . | . . . Robot Analysis Total 1 | . 1 . Derelict Logs Recovered 1 | . . 1 Drone Launches . | . . . Drone Recoveries . | . . . Exploration | -11 -10 -10 ------------- Run | Yrd Mat Sub Turns Passed 2456 | 55 2078 323 Spaces Moved 1144 | 38 989 117 Core 18 | 18 . . Treads . | . . . Legs 1126 | 20 989 117 Wheels . | . . . Hover . | . . . Flight . | . . . Fastest Speed 50 | 50 120 190 Average Speed 145 | 116 141 190 Slowest Speed 260 | 200 190 260 Overloaded Moves . | . . . Propulsion Burnouts . | . . . Robots Hopped . | . . . Potential Cave-ins . | . . . Cave-ins Triggered . | . . . Exploration Rate (%) 38 | 3 96 17 Regions Visited 2 Branch Regions 1 Pre-discovered Areas . | . . . Known Exits Taken . | . . . Unknown Exits Taken 2 | 1 1 . Scrap Searched . | . . . Spaces Dug 13 | . 13 . Terrain Destroyed 13 | . 13 . Melee 13 | . 13 . Projectile . | . . . AOE . | . . . Terrain Rammed . | . . . Walls Destroyed . | . . . Machines Disabled . | . . . Actions | -11 -10 -10 --------- Run | Yrd Mat Sub Total 1721 | 47 1510 164 Wait 364 | . 363 1 Move 1142 | 37 988 117 Hop . | . . . Pick Up 30 | 4 23 3 Fast Attach 12 | 4 7 1 Attach 8 | 2 1 5 Detach . | . . . Swap 18 | . 15 3 Drop 16 | . 14 2 Fire 79 | . 68 11 Melee 45 | . 24 21 Ram . | . . . Kick 7 | . 7 . Crush . | . . . Escape Stasis . | . . . Rewire . | . . . Trap . | . . . Miscellaneous . | . . . Route ------- -11/Scrapyard -10/Materials (discovered 6 exits: [*Mat x3] / [*Min x2] / [*Sub]) -10/Subcaves (discovered 1 exit: [Scr]) History --------- Turn | Location | Event 31 | -11/Scrapyard | Discovered new exit (range 14) 56 | -11/Scrapyard | Entered Materials 57 | -10/Materials | Met a group of wandering Federalists 115 | -10/Materials | Discovered new exit (range 3) 150 | -10/Materials | Discovered new exit (range 14) 301 | -10/Materials | Build established: Mutant 694 | -10/Materials | Repaired Lgt. Armor Plating 721 | -10/Materials | Repaired Aluminum Leg 935 | -10/Materials | Discovered new exit (range 12) 1270 | -10/Materials | Discovered new exit (range 11) 1362 | -10/Materials | Discovered new exit (range 3) 1468 | -10/Materials | Build established: Scavenger-Mutant 1918 | -10/Materials | Discovered new exit (range 8) 2134 | -10/Materials | Entered Subcaves 2135 | -10/Subcaves | Continued accompanying wandering Federalists (6) 2135 | -10/Subcaves | Approached by a straggling Scientist 2189 | -10/Subcaves | Lost 3 allies 2287 | -10/Subcaves | Lost 3 allies 2370 | -10/Subcaves | Core integrity fell below 50% 2385 | -10/Subcaves | Core integrity fell below 20% 2433 | -10/Subcaves | Lost 7 parts (1p3n2u1w) 2444 | -10/Subcaves | Learned Materials security intel 2457 | -10/Subcaves | Destroyed by Autobeam Turret with Autobeam Last Messages --------------- 02407_ 0U-NPI(R) system corrupted by crushing effect. 02414_ 0U-NPI(R) heat short circuits Sub. Optics. 02414_ 0U-NPI(R) overheating. 02415_ 0U-NPI(R) misfires. 02416_ 0U-NPI(R) heat spikes uncontrollably. 02417_ 0U-NPI(R) overheating. 02418_ Destroyed Sub. Beam Cannon. 02418_ 0U-NPI(R) system corrupted by crushing effect. 02419_ 0U-NPI(R) heat damages Scrap Shield. 02419_ 0U-NPI(R) system terminally corrupted. 02423_ Acquired 26 matter. 02425_ Acquired 4 matter. 02430_ Subatomizers dissect the Corrupted Disposable Heat Sink. 02444_ Acquired derelict log, extracted data. Data stored: Materials security intel. 02456_ Aluminum Leg destroyed. Map ----- +----------------------------------------------------+ | ??????????????????????????# ##?????????? | | ??????????????????????????## ###??????????? | | ???????????????????????????## ##????????????? | | ????????????????????????????## #?????????????? | | ?????????????????????????????## ##?????????????? | | ??????????????????????????????# ##?????????????? | | ?????????????????????????????## #?????????????? | | ????????????????????????????## ##?????????????? | | ???????????????? ######??####[ ###?????????????? | | ?????????????# ### ! " #?????????????? | | ??????????????# % ###?????????????? | | ???????????????# " " = " #???????????????? | | ???????????????## ###" "" [%"""#???????????????? | | ?????????????????????##"""" !##"" "#?????????????? | | ??????????????????????##"" ###" ##?????????????? | | ??????????????????????## "" "#####??????????????? | | ?????????????????????## " #?????????????????? | | ?????????????????????# """#?????????????????? | | ?????????????????????## " ##" ##?????????????????? | | ??????????????????????#" " ####??????????????????? | | ??????????????????????##" #?????????????????????? | | ??????????????????????#""" #?????????????????????? | | ??????????????????????#""" #?????????????????????? | | ???????????# ??????#"" ########## ??????????? | | ???????????# ##"" " ?????????? | | ??????????# @ s ???????? | | ?????????? s t"????????? | | ?????????? ########## ????????? | | ??????????? ????????????? ????????? | | ??????????? ## ??????????????????????? | | ???????????? #?# ??????????????????????? | | ???????????? ###?? ??????????????????????? | | ???????????? ?????# ##?????????????????????? | | ????????????? ?????? ##??????????????????????? | | ?????????????????????# #????????????????????????? | | ?????????????????????###?????????????????????????? | | ?????????????????????????????????????????????????? | | ?????????????????????????????????????????????????? | | ?????????????????????????????????????????????????? | | ?????????????????????????????????????????????????? | | ?????????????????????????????????????????????????? | | ?????????????????????????????????????????????????? | | ?????????????????????????????????????????????????? | | ?????????????????????????????????????????????????? | | ?????????????????????????????????????????????????? | | ?????????????????????????????????????????????????? | | ?????????????????????????????????????????????????? | | ?????????????????????????????????????????????????? | | ?????????????????????????????????????????????????? | | ?????????????????????????????????????????????????? | +----------------------------------------------------+ Best States ------------- Heat Dissipation 39 Energy Generation 15 Energy Capacity 250 Matter Stores 300 Matter Capacity 300 Sight Range 16 Terrain Scan Density 10 Armor Coverage 150 Utility Shielding 33 Evasion (%) 55 Offensive Hacking 10 Item Schematics ----------------- None Robot Schematics ------------------ None Fabricated ------------ Nothing Repaired ---------- Lgt. Armor Plating | 6% | -10/Materials Aluminum Leg | 66% | -10/Materials Alien Tech Used ----------------- None Achievements -------------- None Challenges ------------ None Game ------ Seed GaussHeatStorm Manual? 0 Play Time 00:37:38 Cumulative 11.7 hours Start 2025.10.09 @ 01:22:03 End 2025.10.09 @ 23:55:20 Sessions 3 Manual Loads 0 Difficulty Rogue Special Mode None Game No. 5 Rogue 3 Adventurer 2 Explorer 0 Win Type - Total 0 Types 0/0/0/0/0/0/0/0/0/0 Lore% 7 Gallery% 13 Achievement% 14 Wizard Run 0 Options --------- Layout 1 ASCII 0 Keyboard 0 Movement Mouse Keybinds 0 Fullscreen 1 Font 32/Terminus Map View 50x35 Zoom Use 0% Tactical HUD 1 Map Filters NONE Filters NONE Steam 1 RUN: 61b487b9-5433-40fa-85b9-49445f3b7f21